bitfinex/quotes_BTCUSD_20220120
["timestamp","ask_amount","ask_price","bid_price","bid_amount"]
[1642662857335,0.24020629,42030.0,42029.0,1.09482908]
[1642662858136,0.24020629,42030.0,42029.0,1.11782908]
[1642662859436,0.24020629,42030.0,42029.0,1.09482908]
[1642662860287,0.24020629,42030.0,42029.0,1.16782908]
[1642662860880,0.23966843,42030.0,42029.0,1.16912881]
[1642662861281,0.23966843,42030.0,42029.0,1.21702881]
[1642662861481,0.23966843,42030.0,42029.0,1.19402881]
[1642662862391,0.23966843,42030.0,42029.0,1.21702881]
[1642662862785,0.23966843,42030.0,42029.0,1.16702881]
[1642662863385,0.23966843,42030.0,42029.0,1.14402881]
[1642662864230,0.23966843,42030.0,42029.0,1.16602881]
[1642662864733,0.23966843,42030.0,42029.0,0.82683511]
[1642662865135,0.23966843,42030.0,42029.0,0.44290598]
[1642662865533,0.23966843,42030.0,42029.0,0.42090598]
[1642662866334,0.23966843,42030.0,42029.0,0.45890598]
[1642662867440,0.23966843,42030.0,42029.0,0.42090598]
[1642662868285,0.23966843,42030.0,42029.0,0.45490598]
[1642662870184,0.23966843,42030.0,42029.0,0.45890598]
[1642662870486,0.23999334,42030.0,42029.0,0.45868205]
[1642662870888,0.23999334,42030.0,42029.0,0.84269705]
[1642662871544,0.23999334,42030.0,42029.0,0.80469705]
[1642662872332,0.23999334,42030.0,42029.0,0.83169705]
[1642662873533,0.23999334,42030.0,42029.0,0.80469705]
[1642662874332,0.23999334,42030.0,42029.0,0.82769705]
[1642662875582,0.23999334,42030.0,42029.0,0.80424915]
[1642662876181,0.23999334,42030.0,42029.0,0.82824915]
[1642662877582,0.23999334,42030.0,42029.0,0.80424915]
[1642662878184,0.23999334,42030.0,42029.0,0.82824915]
[1642662879434,0.23999334,42030.0,42029.0,0.80424915]
[1642662880235,0.23999334,42030.0,42029.0,0.82824915]
[1642662880440,0.23999334,42030.0,42029.0,0.82837463]
[1642662881434,0.23999334,42030.0,42029.0,0.80437463]
[1642662882235,0.23999334,42030.0,42029.0,0.81937463]
[1642662883483,0.23999334,42030.0,42029.0,0.80437463]
[1642662884285,0.23999334,42030.0,42029.0,0.81737463]
[1642662885482,0.23999334,42030.0,42029.0,0.80437463]
[1642662886391,0.23999334,42030.0,42029.0,0.81637463]
[1642662887534,0.23999334,42030.0,42029.0,0.80437463]
[1642662888336,0.23999334,42030.0,42029.0,0.81737463]
[1642662889636,0.23999334,42030.0,42029.0,0.80437463]
[1642662890282,0.23999334,42030.0,42029.0,0.81737463]
[1642662891588,0.23999334,42030.0,42029.0,0.80437463]
[1642662892488,0.23999334,42030.0,42029.0,0.81737463]
[1642662893494,0.23999334,42030.0,42029.0,0.80437463]
[1642662894434,0.23999334,42030.0,42029.0,0.81737463]
[1642662895633,0.23999334,42030.0,42029.0,0.80437463]
[1642662896432,0.23999334,42030.0,42029.0,0.81737463]
[1642662897533,0.23999334,42030.0,42029.0,0.80437463]
[1642662898383,0.23999334,42030.0,42029.0,0.81837463]
[1642662899687,0.23999334,42030.0,42029.0,0.80437463]
[1642662900286,0.23999334,42030.0,42029.0,0.81837463]
[1642662900888,0.5491687,42030.0,42029.0,0.81837463]
[1642662901290,0.5491687,42030.0,42029.0,0.43435963]
[1642662901537,0.5491687,42030.0,42029.0,0.42035963]
[1642662902437,0.5491687,42030.0,42029.0,0.43035963]
[1642662903538,0.5491687,42030.0,42029.0,0.42035963]
[1642662904338,0.5970687,42030.0,42029.0,0.42835963]
[1642662905583,0.5970687,42030.0,42029.0,0.42035963]
[1642662906285,0.5970687,42030.0,42029.0,0.42935963]
[1642662906879,0.28789334,42030.0,42029.0,0.42935963]
[1642662907682,0.28789334,42030.0,42029.0,0.42035963]
[1642662908282,0.28789334,42030.0,42029.0,0.42835963]
[1642662908886,0.33789334,42030.0,42029.0,0.42835963]
[1642662909343,0.36488218,42030.0,42029.0,0.42835963]
[1642662910143,0.36488218,42030.0,42029.0,0.42035963]
[1642662910350,0.36488218,42030.0,42029.0,0.42835963]
[1642662911246,0.36488218,42030.0,42029.0,0.37412907]
[1642662911644,0.36488218,42030.0,42029.0,0.36612907]
[1642662911844,0.36488218,42030.0,42029.0,0.2948887]
[1642662912246,0.67078397,42030.0,42029.0,0.2948887]
[1642662912452,0.89078397,42030.0,42029.0,0.3048887]
[1642662912651,1.04898678,42030.0,42029.0,0.3048887]
[1642662912890,0.74308499,42030.0,42029.0,0.3048887]
[1642662913494,1.14308499,42030.0,42029.0,0.3048887]
[1642662913692,1.14308499,42030.0,42029.0,0.2948887]
[1642662913894,0.059516,42025.0,42014.0,0.89084606]
[1642662914096,1.023323,42029.0,42014.0,0.2834]
[1642662914097,0.059518,42023.0,42014.0,0.2834]
[1642662914290,0.0479,42022.0,42015.0,0.00025786]
[1642662914690,0.02698884,42018.0,42014.0,0.06527505]
[1642662914891,0.29414924,42017.0,42014.0,0.06527505]
[1642662915091,0.30347668,42016.0,42014.0,0.06527505]
[1642662915292,0.0479,42015.0,42014.0,0.06527505]
[1642662915492,0.64829441,42015.0,42014.0,0.06527505]
[1642662915696,0.64829441,42015.0,42014.0,0.00027505]
[1642662915697,0.69829441,42015.0,42014.0,0.00027505]
[1642662916091,0.69829441,42015.0,42009.0,0.000361]
[1642662916393,0.32981266,42010.0,42008.0,0.00108943]
[1642662916645,0.0479,42009.0,42008.0,0.00108943]
[1642662916939,0.0479,42009.0,42008.0,0.00146762]
[1642662917239,0.0479,42009.0,42008.0,0.00037819]
[1642662917637,0.0479,42009.0,42007.0,0.00039538]
[1642662918441,0.0479,42009.0,42007.0,0.07639538]
[1642662919740,0.0479,42009.0,42007.0,0.00039538]
[1642662920039,0.02698884,42008.0,42007.0,0.00039538]
[1642662920286,0.07488884,42008.0,42007.0,0.00039538]
[1642662920486,0.07488884,42008.0,42007.0,0.07439538]
[1642662921386,0.30889377,42008.0,42007.0,0.07439538]
[1642662921588,0.61307791,42008.0,42007.0,0.07439538]
[1642662921791,0.61307791,42008.0,42007.0,0.00039538]
[1642662922386,0.62107791,42008.0,42007.0,0.01839538]
[1642662922587,0.31689377,42008.0,42007.0,0.01839538]
[1642662922791,0.36689377,42008.0,42007.0,0.01839538]
[1642662922985,0.13288884,42008.0,42007.0,0.01839538]
[1642662924236,0.12488884,42008.0,42007.0,0.00039538]
[1642662924539,0.13288884,42008.0,42007.0,0.01439538]
[1642662925536,0.3734774,42008.0,42007.0,0.01480526]
[1642662925737,0.3654774,42008.0,42007.0,0.00080526]
[1642662926339,0.3654774,42008.0,42007.0,0.01380526]
[1642662926538,0.3734774,42008.0,42007.0,0.01380526]
[1642662927781,0.3654774,42008.0,42007.0,0.00080526]
[1642662927997,0.3154774,42008.0,42007.0,0.00080526]
[1642662928483,0.3234774,42008.0,42007.0,0.01580526]
[1642662928683,0.3734774,42008.0,42007.0,0.01580526]
[1642662929484,2.78230947,42008.0,42007.0,0.01580526]
[1642662929689,2.79563247,42008.0,42007.0,0.01580526]
[1642662930285,2.78763247,42008.0,42007.0,0.00080526]
[1642662930488,2.79563247,42008.0,42007.0,0.01580526]
[1642662930696,2.93096247,42008.0,42007.0,0.01580526]
[1642662932433,2.93496247,42008.0,42007.0,0.00080526]
[1642662933034,3.18496247,42008.0,42007.0,0.00080526]
[1642662933234,3.78416247,42008.0,42007.0,0.00080526]
[1642662934335,3.77216247,42008.0,42007.0,0.00080526]
[1642662934535,3.88516247,42008.0,42007.0,0.00080526]
[1642662934739,3.88640837,42008.0,42007.0,0.00080526]
[1642662934937,3.93640837,42008.0,42007.0,0.00080526]
[1642662935789,3.87340837,42008.0,42007.0,0.00080526]
[1642662935986,3.92340837,42008.0,42007.0,0.00080526]
[1642662936585,3.93740837,42008.0,42007.0,0.00080526]
[1642662937396,3.90207837,42008.0,42007.0,0.00080526]
[1642662937786,3.88807837,42008.0,42007.0,0.00073015]
[1642662938188,3.93524689,42008.0,42007.0,0.00073015]
[1642662938597,3.94924689,42008.0,42007.0,0.00073015]
[1642662939040,3.90207837,42008.0,42007.0,0.00073015]
[1642662939740,3.88807837,42008.0,42007.0,0.00073015]
[1642662940143,3.96329674,42008.0,42007.0,0.00073015]
[1642662940539,3.97729674,42008.0,42007.0,0.00073015]
[1642662941845,3.96205084,42008.0,42007.0,0.00073015]
[1642662942143,3.86205084,42008.0,42007.0,0.00073015]
[1642662942344,0.05955,42005.0,41999.0,0.00435847]
[1642662942550,0.34860211,42004.0,41991.0,0.02]
[1642662942789,0.44860211,42004.0,42000.0,0.00012033]
[1642662943092,0.613323,42001.0,42000.0,0.00012033]
[1642662943291,0.711223,42001.0,42000.0,0.00012033]
[1642662943497,1.11624346,42001.0,42000.0,0.00012033]
[1642662943692,1.36433208,42001.0,42000.0,0.00012033]
[1642662943905,1.96353208,42001.0,42000.0,0.00012033]
[1642662944089,1.96353208,42001.0,41998.0,0.00056373]
[1642662944289,1.1492,42000.0,41999.0,0.00013752]
[1642662944491,0.660423,42000.0,41999.0,0.00013752]
[1642662944689,0.760423,42000.0,41999.0,0.00013752]
[1642662944890,0.776643,42000.0,41999.0,0.00013752]
[1642662945289,0.776643,42000.0,41997.0,0.00056375]
[1642662945491,0.013323,41999.0,41998.0,0.00015471]
[1642662945692,0.061223,41999.0,41998.0,0.00015471]
[1642662945892,0.27986673,41999.0,41998.0,0.00015471]
[1642662946294,0.32986673,41999.0,41998.0,0.00015471]
[1642662946539,0.44086673,41999.0,41996.0,0.00109229]
[1642662946740,0.44086673,41999.0,41997.0,0.0001719]
[1642662947341,0.663323,41998.0,41997.0,0.0001719]
[1642662947542,0.811223,41998.0,41997.0,0.0001719]
[1642662947747,0.811223,41998.0,41996.0,0.00114874]
[1642662947953,0.870777,41998.0,41997.0,0.0001719]
[1642662948346,1.28598818,41998.0,41997.0,0.0001719]
[1642662948547,1.94660818,41998.0,41997.0,0.0001719]
[1642662948745,0.85,41997.0,41985.0,0.9306]
[1642662948949,0.5992,41995.0,41985.0,0.9306]
[1642662949146,0.34384472,41993.0,41988.0,0.00015471]
[1642662949349,0.061223,41992.0,41988.0,0.00015471]
[1642662949545,0.27359674,41991.0,41988.0,0.00015471]
[1642662949746,0.061223,41990.0,41988.0,0.00015471]
[1642662950052,0.0479,41989.0,41988.0,0.00015471]
[1642662950584,0.91278,41989.0,41988.0,0.00015471]
[1642662950786,0.926103,41989.0,41988.0,0.00015471]
[1642662950982,0.985671,41989.0,41988.0,0.00015471]
[1642662951182,0.676103,41989.0,41988.0,0.00015471]
[1642662951386,0.937286,41989.0,41988.0,0.00015471]
[1642662951783,0.99405983,41989.0,41987.0,0.0012719]
[1642662951983,0.061223,41988.0,41987.0,0.0012719]
[1642662952586,0.079223,41988.0,41987.0,0.0012719]
[1642662953585,0.09271742,41988.0,41987.0,0.0012719]
[1642662953786,0.08821184,41988.0,41987.0,0.0012719]
[1642662954634,0.10521184,41988.0,41987.0,0.0012719]
[1642662955035,0.65521184,41988.0,41987.0,0.0012719]
[1642662955437,0.75554747,41988.0,41987.0,0.00179181]
[1642662955934,0.73854747,41988.0,41987.0,0.00179181]
[1642662956135,0.75476747,41988.0,41987.0,0.00179181]
[1642662956535,0.76976747,41988.0,41987.0,0.00179181]
[1642662956935,0.21976747,41988.0,41987.0,0.00179181]
[1642662957137,0.11976747,41988.0,41987.0,0.00179181]
[1642662957784,0.10476747,41988.0,41987.0,0.00179181]
[1642662957989,0.50476747,41988.0,41987.0,0.00179181]
[1642662958386,0.60476747,41988.0,41987.0,0.00179181]
[1642662958593,0.61876747,41988.0,41987.0,0.00179181]
[1642662959191,0.713323,41987.0,41985.0,0.0022]
[1642662959396,0.061223,41986.0,41985.0,0.00328864]
[1642662959590,0.660423,41986.0,41985.0,0.00328864]
[1642662959790,0.68741184,41986.0,41985.0,0.00328864]
[1642662959990,0.78741184,41986.0,41985.0,0.00328864]
[1642662960194,1.15853544,41986.0,41985.0,0.00328864]
[1642662960391,1.15853544,41986.0,41985.0,0.0022]
[1642662960598,1.17053544,41986.0,41985.0,0.0022]
[1642662961839,1.15853544,41986.0,41985.0,0.0022]
[1642662962540,0.79941184,41986.0,41985.0,0.0022]
[1642662962843,0.69941184,41986.0,41985.0,0.0022]
[1642662963940,0.68741184,41986.0,41985.0,0.0022]
[1642662964740,0.10821184,41986.0,41985.0,0.0022]
[1642662965484,0.10854564,41986.0,41985.0,0.0022]
[1642662966184,0.4056024,41986.0,41985.0,0.0022]
[1642662966385,0.3856024,41986.0,41985.0,0.0022]
[1642662966585,0.4056024,41986.0,41985.0,0.0022]
[1642662966985,0.10854564,41986.0,41985.0,0.0022]
[1642662967386,0.06064564,41986.0,41985.0,0.0022]
[1642662967801,0.04064564,41986.0,41985.0,0.0022]
[1642662968587,0.06664564,41986.0,41985.0,0.0022]
[1642662969245,0.05332264,41986.0,41985.0,0.0022]
[1642662969845,0.02732264,41986.0,41985.0,0.1622]
[1642662970044,0.02732264,41986.0,41985.0,0.546215]
[1642662970243,0.02732264,41986.0,41985.0,1.096215]
[1642662970641,0.02732264,41986.0,41985.0,0.995215]
[1642662971443,0.02732264,41986.0,41985.0,1.38041746]
[1642662971844,0.02732264,41986.0,41985.0,1.35141746]
[1642662972644,0.02732264,41986.0,41985.0,1.39141746]
[1642662973888,0.02732264,41986.0,41985.0,1.35141746]
[1642662974689,0.02732264,41986.0,41985.0,1.39141746]
[1642662975392,0.02723918,41986.0,41985.0,1.40460138]
[1642662975691,0.02723918,41986.0,41985.0,2.25460138]
[1642662975891,0.02723918,41986.0,41985.0,2.11460138]
[1642662976090,0.02723918,41986.0,41985.0,2.10265138]
[1642662976532,0.02723918,41986.0,41985.0,2.13765138]
[1642662977334,0.02723918,41986.0,41985.0,2.14960138]
[1642662977934,0.02723918,41986.0,41985.0,2.11460138]
[1642662978136,0.02723918,41986.0,41985.0,1.36460138]
[1642662978336,0.02723918,41986.0,41985.0,1.38080138]
[1642662978537,0.02723918,41986.0,41985.0,1.43780138]
[1642662978736,0.02723918,41986.0,41985.0,1.83780138]
[1642662979741,0.02723918,41986.0,41985.0,1.78080138]
[1642662980388,0.02698884,41986.0,41985.0,1.78080138]
[1642662980590,0.02698884,41986.0,41985.0,1.40665138]
[1642662981189,0.01349442,41986.0,41985.0,1.40665138]
[1642662981590,0.22582191,41986.0,41985.0,1.40665138]
[1642662981788,0.22582191,41986.0,41985.0,1.35265138]
[1642662982587,0.22582191,41986.0,41985.0,1.38965138]
[1642662982787,0.22582191,41986.0,41985.0,1.22965138]
[1642662983388,0.22582191,41986.0,41985.0,0.46043392]
[1642662984036,0.22582191,41986.0,41985.0,0.42343392]
[1642662984637,0.22582191,41986.0,41985.0,0.46043392]
[1642662985740,0.22582191,41986.0,41985.0,0.84444892]
[1642662986238,0.22582191,41986.0,41985.0,0.80744892]
[1642662986638,0.22582191,41986.0,41985.0,0.84944892]
[1642662986844,0.22582191,41986.0,41985.0,0.46543392]
[1642662988485,0.22582191,41986.0,41985.0,0.42343392]
[1642662988683,0.22582191,41986.0,41985.0,0.46543392]
[1642662989883,0.22582191,41986.0,41985.0,0.42343392]
[1642662990084,0.21232749,41986.0,41985.0,0.42343392]
[1642662990484,0.22572587,41986.0,41985.0,0.42343392]
[1642662990683,0.22572587,41986.0,41985.0,0.46443392]
[1642662991937,0.22572587,41986.0,41985.0,0.42343392]
[1642662992537,0.02681521,41986.0,41985.0,1.01043392]
[1642662992742,0.02681521,41986.0,41985.0,1.39444892]
[1642662993538,0.02681521,41986.0,41985.0,1.69444892]
[1642662993739,0.02681521,41986.0,41985.0,2.26489498]
[1642662994140,0.02681521,41986.0,41985.0,1.95989498]
[1642662994341,0.02681521,41986.0,41985.0,1.35244892]
[1642662994540,0.02681521,41986.0,41985.0,1.38044892]
[1642662995286,0.02681521,41986.0,41985.0,1.98800719]
[1642662995487,0.02681521,41986.0,41985.0,1.38159447]
[1642662995985,0.02681521,41986.0,41985.0,1.35359447]
[1642662996689,0.02681521,41986.0,41985.0,1.38159447]
[1642662997090,0.02681521,41986.0,41985.0,3.11563969]
[1642662997294,0.24,41988.0,41986.0,0.96316741]
[1642662997489,0.24,41988.0,41987.0,2.23714621]
[1642662997890,0.24,41988.0,41987.0,2.17761021]
[1642662998291,0.24,41988.0,41987.0,1.32761021]
[1642662998690,0.24,41988.0,41987.0,1.35161021]
[1642662999337,0.24,41988.0,41987.0,0.74411068]
[1642662999540,0.24,41988.0,41987.0,0.408015]
[1642662999736,0.24,41988.0,41987.0,0.6749706]
[1642662999942,0.24,41988.0,41987.0,0.6509706]
[1642663000336,0.24,41988.0,41987.0,0.65211463]
[1642663000537,0.24,41988.0,41987.0,0.68111463]
[1642663001439,0.24,41988.0,41987.0,0.41415903]
[1642663002444,0.24,41988.0,41987.0,0.38515903]
[1642663002639,0.24,41988.0,41987.0,0.41115903]
[1642663003886,0.24,41988.0,41987.0,0.38515903]
[1642663004687,0.24,41988.0,41987.0,0.40915903]
[1642663005888,0.24,41988.0,41987.0,0.38515903]
[1642663006743,0.00108984,41991.0,41988.0,0.85]
[1642663006944,0.2959,42007.0,41990.0,1.66075984]
[1642663007142,0.41173182,42007.0,41995.0,0.0012874]
[1642663007442,0.00027504,42003.0,41995.0,0.0012874]
[1642663007644,0.00027504,42003.0,41996.0,0.384015]
[1642663007838,0.00025785,42002.0,41996.0,0.65907241]
[1642663008341,0.00024066,42001.0,41996.0,0.65907241]
[1642663008738,0.00022347,42000.0,41996.0,0.66707241]
[1642663008940,0.00022347,42000.0,41996.0,0.93712349]
[1642663009140,0.00020628,41999.0,41996.0,0.93921961]
[1642663009540,0.00108162,42001.0,41996.0,0.93921961]
[1642663009541,0.00018909,41998.0,41996.0,0.93921961]
[1642663009740,0.00018909,41998.0,41997.0,1.12441996]
[1642663009943,0.0010816,42000.0,41997.0,1.56795996]
[1642663010146,0.0010816,42000.0,41998.0,0.384015]
[1642663010402,0.0010816,42000.0,41999.0,1.11902956]
[1642663010601,0.0010816,42000.0,41999.0,1.50304456]
[1642663010805,0.00022347,42000.0,41999.0,1.50304456]
[1642663012403,0.00022347,42000.0,41999.0,0.65304456]
[1642663012810,0.00022347,42000.0,41999.0,0.67004456]
[1642663013909,0.00022347,42000.0,41999.0,0.65304456]
[1642663014740,0.00022347,42000.0,41999.0,0.67004456]
[1642663015539,0.00022347,42000.0,41999.0,0.67117953]
[1642663015939,0.00022347,42000.0,41999.0,0.65417953]
[1642663016639,0.00022347,42000.0,41999.0,0.67517953]
[1642663017786,0.24022347,42000.0,41999.0,0.67517953]
[1642663017993,0.24022347,42000.0,41999.0,0.65417953]
[1642663018786,0.24022347,42000.0,41999.0,0.67417953]
[1642663018989,0.24022347,42000.0,41999.0,0.40514997]
[1642663019688,0.24022347,42000.0,41999.0,0.02113497]
[1642663019886,0.24022347,42000.0,41999.0,0.00113497]
[1642663020387,0.54015333,42000.0,41995.0,0.29038122]
[1642663020789,0.53992986,42000.0,41999.0,0.367]
[1642663021190,0.54015333,42000.0,41999.0,0.017]
[1642663021950,0.54015333,42000.0,41999.0,0.384015]
[1642663022854,0.54015333,42000.0,41999.0,0.405015]
[1642663023262,0.54015333,42000.0,41999.0,0.021]
[1642663024151,0.54015333,42000.0,41995.0,0.00242237]
[1642663024152,0.22057614,41998.0,41995.0,0.00242237]
[1642663024353,0.22057614,41998.0,41996.0,0.384015]
[1642663024552,0.0001719,41997.0,41996.0,0.384015]
[1642663026188,0.0001719,41997.0,41996.0,0.934015]
[1642663026788,0.0001719,41997.0,41996.0,0.956015]
[1642663026988,0.0001719,41997.0,41996.0,0.406015]
[1642663027388,8.784e-05,41997.0,41996.0,0.406015]
[1642663027989,8.784e-05,41997.0,41996.0,0.384015]
[1642663028789,8.784e-05,41997.0,41996.0,0.406015]
[1642663030049,8.784e-05,41997.0,41996.0,0.384015]
[1642663030447,8.784e-05,41997.0,41996.0,0.38515223]
[1642663030846,8.784e-05,41997.0,41996.0,0.40715223]
[1642663032147,8.784e-05,41997.0,41996.0,0.38515223]
[1642663032784,8.784e-05,41997.0,41996.0,0.40715223]
[1642663033187,0.23664362,41999.0,41997.0,0.3]
[1642663033388,0.23664362,41999.0,41996.0,0.40715223]
[1642663033389,0.23664362,41999.0,41998.0,0.384015]
[1642663033590,0.23556177,41999.0,41996.0,0.02313723]
[1642663033987,0.23556177,41999.0,41996.0,0.00113723]
[1642663034188,0.23556177,41999.0,41997.0,0.384015]
[1642663034390,0.28556177,41999.0,41996.0,0.00113723]
[1642663034792,0.28556177,41999.0,41997.0,0.02]
[1642663035590,0.28556177,41999.0,41998.0,0.00113572]
[1642663036834,0.28556177,41999.0,41998.0,0.02113572]
[1642663038057,0.59678477,41999.0,41998.0,0.00113572]
[1642663038744,0.59678477,41999.0,41998.0,0.01613572]
[1642663038947,0.89714838,41999.0,41998.0,0.01613572]
[1642663039540,1.04714838,41999.0,41998.0,0.01613572]
[1642663039739,1.1357063,41999.0,41998.0,0.01613572]
[1642663039939,1.1357063,41999.0,41998.0,0.00113572]
[1642663040137,1.1277063,41999.0,41998.0,0.00113572]
[1642663040388,1.1277063,41999.0,41988.0,0.00222552]
[1642663040588,0.32736964,41992.0,41988.0,0.00222552]
[1642663040788,0.23271776,41991.0,41989.0,0.38415252]
[1642663041191,0.23271776,41991.0,41990.0,0.00012033]
[1642663042791,0.23271776,41991.0,41990.0,0.03912033]
[1642663043798,0.53977752,41991.0,41990.0,0.03912033]
[1642663044440,0.53977752,41991.0,41990.0,0.00012033]
[1642663044639,0.23271776,41991.0,41990.0,0.00012033]
[1642663044838,0.52795574,41991.0,41990.0,0.00012033]
[1642663045039,0.23271776,41991.0,41990.0,0.00012033]
[1642663045439,0.23271776,41991.0,41990.0,0.00069121]
[1642663046140,0.52770165,41991.0,41990.0,0.00069121]
[1642663046343,0.52850198,41991.0,41990.0,0.00069121]
[1642663046942,0.23271776,41991.0,41990.0,0.00069121]
[1642663047990,0.47271776,41991.0,41990.0,0.00069121]
[1642663049995,0.76894609,41991.0,41990.0,0.00069121]
[1642663051094,0.47271776,41991.0,41990.0,0.00069121]
[1642663051535,0.76436269,41991.0,41990.0,0.00069121]
[1642663051742,0.76965854,41991.0,41990.0,0.00069121]
[1642663052137,0.47271776,41991.0,41990.0,0.00069121]
[1642663052338,0.76500512,41991.0,41990.0,0.00069121]
[1642663052537,0.47271776,41991.0,41990.0,0.00069121]
[1642663053941,0.77098978,41991.0,41990.0,0.00069121]
[1642663054143,0.81888978,41991.0,41990.0,0.00069121]
[1642663055144,1.06888978,41991.0,41990.0,0.00069121]
[1642663055391,1.06888978,41991.0,41990.0,0.00050092]
[1642663056093,1.11888978,41991.0,41990.0,0.00050092]
[1642663056893,1.12188978,41991.0,41990.0,0.00050092]
[1642663057989,1.12188978,41991.0,41986.0,0.04022104]
[1642663058190,1.11888978,41991.0,41986.0,0.04022104]
[1642663060262,1.11888978,41991.0,41988.0,0.00047649]
[1642663060461,0.82061776,41991.0,41988.0,0.00047649]
[1642663063388,3.01880158,41991.0,41988.0,0.00047649]
[1642663063588,0.82061776,41991.0,41988.0,0.00047649]
[1642663064896,0.82061776,41991.0,41986.0,0.03069753]
[1642663065090,0.82061776,41991.0,41986.0,0.03190987]
[1642663065489,0.82061776,41991.0,41990.0,0.00047573]
[1642663066291,1.11443942,41991.0,41990.0,0.00047573]
[1642663066533,0.82061776,41991.0,41990.0,0.00047573]
[1642663066937,0.82361776,41991.0,41990.0,0.00047573]
[1642663068034,0.82061776,41991.0,41990.0,0.00047573]
[1642663068936,0.82361776,41991.0,41990.0,0.00047573]
[1642663070322,0.82061776,41991.0,41986.0,0.03190988]
[1642663070514,0.82061776,41991.0,41986.0,0.09145788]
[1642663070715,0.82061776,41991.0,41987.0,0.384015]
[1642663072015,0.82061776,41991.0,41986.0,0.03069753]
[1642663072214,0.82061776,41991.0,41986.0,0.03190986]
[1642663073216,0.82061776,41991.0,41986.0,0.03069753]
[1642663073416,0.82061776,41991.0,41986.0,0.03190986]
[1642663074439,0.82061776,41991.0,41986.0,0.03069753]
[1642663074739,0.82061776,41991.0,41986.0,0.03190986]
[1642663075638,0.82061776,41991.0,41986.0,0.03069753]
[1642663075839,0.82061776,41991.0,41986.0,0.03190986]
[1642663076841,0.82061776,41991.0,41986.0,0.03069753]
[1642663077042,0.82061776,41991.0,41986.0,0.03190986]
[1642663078089,0.82061776,41991.0,41986.0,0.03069753]
[1642663078292,0.82061776,41991.0,41986.0,0.03190986]
[1642663078491,0.82061776,41991.0,41987.0,0.384015]
[1642663078696,1.11089851,41991.0,41987.0,0.384015]
[1642663078894,0.82061776,41991.0,41987.0,0.384015]
[1642663080297,0.77271776,41991.0,41987.0,0.384015]
[1642663085065,0.77271776,41991.0,41986.0,0.03314037]
[1642663085291,0.77271776,41991.0,41986.0,0.03192804]
[1642663085502,2.44640813,41991.0,41986.0,0.03314037]
[1642663085698,2.44640813,41991.0,41986.0,0.03190986]
[1642663085699,0.24492733,41990.0,41986.0,0.03190986]
[1642663086495,0.24492733,41990.0,41986.0,0.03069753]
[1642663086692,0.24492733,41990.0,41986.0,0.03190985]
[1642663086893,0.013323,41989.0,41986.0,0.03190985]
[1642663087094,0.0479,41988.0,41986.0,0.03190985]
[1642663087294,0.3130326,41987.0,41986.0,0.03190985]
[1642663087593,0.3609326,41987.0,41986.0,0.03197861]
[1642663087792,0.3609326,41987.0,41986.0,0.03076629]
[1642663088797,0.4109326,41987.0,41986.0,0.03076629]
[1642663089039,0.4204426,41987.0,41986.0,0.03076629]
[1642663089843,0.8404426,41987.0,41986.0,0.03076629]
[1642663090240,0.8304426,41987.0,41986.0,0.03076629]
[1642663090641,0.31955695,41987.0,41986.0,0.03076629]
[1642663091042,0.27955695,41987.0,41986.0,0.03076629]
[1642663092244,0.26955695,41987.0,41986.0,0.03076629]
[1642663093091,0.32745695,41987.0,41986.0,0.03076629]
[1642663094293,0.31745695,41987.0,41986.0,0.03076629]
[1642663095096,0.32745695,41987.0,41986.0,0.03076629]
[1642663096100,0.34077995,41987.0,41986.0,0.03076629]
[1642663096296,0.33077995,41987.0,41986.0,0.03076629]
[1642663096937,0.34077995,41987.0,41986.0,0.03076629]
[1642663097939,0.85,41985.0,41975.0,0.96995899]
[1642663098144,0.00127791,41983.0,41971.0,0.02]
[1642663098341,0.00124777,41977.0,41976.0,0.0001719]
[1642663098646,0.05569777,41977.0,41976.0,0.0001719]
[1642663098840,0.91902077,41977.0,41976.0,0.0001719]
[1642663099038,1.86884933,41977.0,41976.0,0.0001719]
[1642663099638,2.14508699,41977.0,41976.0,0.0001719]
[1642663099839,1.29508699,41977.0,41976.0,0.0001719]
[1642663100037,1.24063699,41977.0,41976.0,0.0001719]
[1642663100291,1.1353641,41977.0,41974.0,0.00020628]
[1642663100494,0.93127863,41976.0,41974.0,0.00020628]
[1642663100691,0.38612536,41975.0,41974.0,0.00020628]
[1642663101093,0.061223,41975.0,41974.0,0.00020628]
[1642663101296,0.061223,41975.0,41973.0,0.00143599]
[1642663101490,0.0479,41975.0,41974.0,0.00020628]
[1642663102490,0.0479,41975.0,41973.0,0.00022347]
[1642663103091,0.0509,41975.0,41973.0,0.00022347]
[1642663104145,0.0479,41975.0,41973.0,0.00022347]
[1642663105149,0.0509,41975.0,41973.0,0.00022347]
[1642663105552,0.29839332,41974.0,41973.0,0.00022347]
[1642663105753,0.34629332,41974.0,41973.0,0.00022347]
[1642663105957,0.35306906,41974.0,41973.0,0.00022347]
[1642663106952,0.35506906,41974.0,41973.0,0.00022347]
[1642663108194,0.35306906,41974.0,41973.0,0.00022347]
[1642663108997,0.35506906,41974.0,41973.0,0.00022347]
[1642663109399,0.59506906,41974.0,41973.0,0.00022347]
[1642663110803,0.59306906,41974.0,41973.0,0.00022347]
[1642663111003,0.59906906,41974.0,41973.0,0.00022347]
[1642663112243,0.59306906,41974.0,41973.0,0.00022347]
[1642663113040,0.60006906,41974.0,41973.0,0.00022347]
[1642663114341,0.59306906,41974.0,41973.0,0.00022347]
[1642663114545,0.29467574,41974.0,41973.0,0.00022347]
[1642663115140,0.30167574,41974.0,41973.0,0.00022347]
[1642663116396,0.29467574,41974.0,41973.0,0.00022347]
[1642663117103,0.30167574,41974.0,41973.0,0.00022347]
[1642663118198,0.25377574,41974.0,41973.0,0.00022347]
[1642663118398,0.24677574,41974.0,41973.0,0.00022347]
[1642663118800,0.29677574,41974.0,41973.0,0.00022347]
[1642663119043,0.30177574,41974.0,41973.0,0.00022347]
[1642663120345,0.29677574,41974.0,41973.0,0.00022347]
[1642663121147,0.29977574,41974.0,41973.0,0.00022347]
[1642663121849,0.24977574,41974.0,41973.0,0.00022347]
[1642663122451,0.24677574,41974.0,41973.0,0.00022347]
[1642663123098,0.24677574,41974.0,41973.0,0.52022347]
[1642663123895,0.24677574,41974.0,41973.0,0.90423847]
[1642663124295,0.24677574,41974.0,41973.0,0.88423847]
[1642663124495,0.24677574,41974.0,41973.0,0.96986554]
[1642663124696,0.23992604,41974.0,41973.0,1.73986554]
[1642663124900,0.23992604,41974.0,41973.0,1.38986554]
[1642663125094,0.23992604,41974.0,41973.0,1.42586554]
[1642663126096,0.23992604,41974.0,41973.0,1.77586554]
[1642663126296,0.23992604,41974.0,41973.0,1.73986554]
[1642663127145,0.23992604,41974.0,41973.0,1.78186554]
[1642663127344,1.25965695,41987.0,41978.0,0.27913226]
[1642663127550,0.26955695,41987.0,41979.0,0.05955]
[1642663127746,0.26955695,41987.0,41982.0,0.30939296]
[1642663127946,0.31955695,41987.0,41982.0,0.30939296]
[1642663128749,0.32059434,41987.0,41980.0,0.00010314]